[Event "Hungarian Rapid-ch 2022"]
[Site "Ajka"]
[Date "2022.07.15"]
[Round "3.2"]
[White "Leviczky, Tibor"]
[Black "Gledura, Benjamin"]
[Result "1/2-1/2"]
[ECO "A33"]
[WhiteElo "2281"]
[BlackElo "2637"]
[Annotator "ChessBase"]
[PlyCount "167"]
[EventDate "2022.07.15"]
[EventType "swiss"]
[EventCountry "HUN"]
[SourceTitle "playchess.com"]
[Source "ChessBase"]
[SourceQuality "1"]
[TimeControl "900+10"]

1. Nf3 {[%emt 0:00:13]} c5 {[%emt 0:00:15]} 2. c4 {[%emt 0:00:03]} Nc6 {[%emt 0:00:08]} 3. d4 {[%emt 0:00:02]} cxd4 {[%emt 0:00:03]} 4. Nxd4 {[%emt 0:00:03]} Nf6 {[%emt 0:00:03]} 5. Nc3 {[%emt 0:00:01]} e6 {[%emt 0:00:05]} 6. a3 {[%emt 0:00:05]} Bc5 {[%emt 0:01:23]} 7. Nb3 {[%emt 0:00:17]} Be7 {[%emt 0:00:04]} 8. e4 {[%emt 0:00:26]} O-O {[%emt 0:00:35]} 9. Be2 {[%emt 0:00:24]} b6 {[%emt 0:00:26]} 10. O-O {[%emt 0:01:19]} Ba6 {[%emt 0:00:14]} 11. Be3 {[%emt 0:01:30]} Rc8 {[%emt 0:00:15]} 12. f4 {[%emt 0:00:36]} Nb8 {[%emt 0:01:23]} 13. e5 {[%emt 0:01:05]} Ne8 {[%emt 0:00:08]} 14. Nb5 {[%emt 0:01:35]} Bxb5 {[%emt 0:00:19]} 15. cxb5 {[%emt 0:00:02]} d6 {[%emt 0:00:17]} 16. Bf3 {[%emt 0:02:26]} Nc7 {[%emt 0:01:28]} 17. Qe2 {[%emt 0:00:19]} dxe5 {[%emt 0:02:54]} 18. fxe5 {[%emt 0:00:16]} Bg5 {[%emt 0:00:03]} 19. Bf2 {[%emt 0:00:24]} Qe7 {[%emt 0:00:03]} 20. Nd4 {[%emt 0:00:57]} Bh6 {[%emt 0:02:09]} 21. Rfd1 {[%emt 0:01:21]} g6 {[%emt 0:00:01]} 22. b4 {[%emt 0:00:53]} Nd5 {[%emt 0:00:35]} 23. Bxd5 {[%emt 0:01:17]} exd5 {[%emt 0:00:01]} 24. Nf3 {[%emt 0:01:19]} Qe6 {[%emt 0:00:27]} 25. Nd4 {[%emt 0:00:19]} Qd7 {[%emt 0:00:08]} 26. e6 {[%emt 0:00:45]} fxe6 {[%emt 0:00:03]} 27. Qxe6+ {[%emt 0:00:04]} Qxe6 {[%emt 0:00:02]} 28. Nxe6 {[%emt 0:00:02]} Rfe8 {[%emt 0:00:25]} 29. Nd4 {[%emt 0:00:05]} Rc4 {[%emt 0:00:26]} 30. Nf3 {[%emt 0:00:09]} Bg7 {[%emt 0:02:36]} 31. Ra2 {[%emt 0:00:20]} Nd7 {[%emt 0:00:02]} 32. h3 {[%emt 0:00:11]} Nf6 {[%emt 0:00:28]} 33. Bh4 {[%emt 0:00:09]} Ne4 {[%emt 0:00:07]} 34. Re2 {[%emt 0:00:31]} Rf8 {[%emt 0:00:02]} 35. Re3 {[%emt 0:00:17]} Nc3 {[%emt 0:00:07]} 36. Rdd3 {[%emt 0:00:11]} d4 {[%emt 0:01:02]} 37. Re7 {[%emt 0:00:09]} Nxb5 {[%emt 0:00:04]} 38. a4 {[%emt 0:00:23]} Nc7 {[%emt 0:00:12]} 39. Bg3 {[%emt 0:00:08]} Nd5 {[%emt 0:00:03]} 40. Rxa7 {[%emt 0:00:07]} Nxb4 {[%emt 0:00:20]} 41. Rb3 {[%emt 0:00:17]} Re8 {[%emt 0:00:16]} 42. Nd2 {[%emt 0:00:08]} Rc1+ {[%emt 0:00:17]} 43. Kh2 {[%emt 0:00:07]} Nd5 {[%emt 0:00:06]} 44. a5 {[%emt 0:00:25]} bxa5 {[%emt 0:00:06]} 45. Rbb7 {[%emt 0:00:06]} Bh8 {[%emt 0:00:15]} 46. Rxh7 {[%emt 0:00:23]} Ne3 {[%emt 0:00:27]} 47. Bf4 {[%emt 0:00:10]} Rc6 {[%emt 0:00:42]} 48. Rhd7 {[%emt 0:00:12]} Rc2 {[%emt 0:00:20]} 49. Bxe3 {[%emt 0:00:23]} dxe3 {[%emt 0:00:03]} 50. Nf3 {[%emt 0:00:01]} Rf2 {[%emt 0:00:48]} 51. Re7 {[%emt 0:00:19]} Rxe7 {[%emt 0:00:02]} 52. Rxe7 {[%emt 0:00:01]} e2 {[%emt 0:00:14]} 53. Kg3 {[%emt 0:00:06]} Rf1 {[%emt 0:00:30]} 54. Rxe2 {[%emt 0:00:08]} Bc3 {[%emt 0:00:01]} 55. Rc2 {[%emt 0:00:06]} Bb4 {[%emt 0:00:02]} 56. Rc6 {[%emt 0:00:06]} Kg7 {[%emt 0:00:24]} 57. Kg4 {[%emt 0:00:30]} Rf2 {[%emt 0:00:05]} 58. g3 {[%emt 0:00:09]} a4 {[%emt 0:00:08]} 59. Rb6 {[%emt 0:00:05]} Bc3 {[%emt 0:00:10]} 60. Ra6 {[%emt 0:00:06]} Ra2 {[%emt 0:00:25]} 61. Ng5 {[%emt 0:00:25]} a3 {[%emt 0:00:11]} 62. Ra7+ {[%emt 0:00:04]} Kf8 {[%emt 0:00:03]} 63. Ne6+ {[%emt 0:00:17]} Ke8 {[%emt 0:00:01]} 64. Kg5 {[%emt 0:00:04]} Rg2 {[%emt 0:00:31]} 65. Nc7+ {[%emt 0:00:16]} Kf8 {[%emt 0:00:02]} 66. Ne6+ {[%emt 0:00:01]} Kg8 {[%emt 0:00:06]} 67. Rxa3 {[%emt 0:00:24]} Rxg3+ {[%emt 0:00:01]} 68. Kh4 {[%emt 0:00:02]} Re3 {[%emt 0:00:05]} 69. Ra8+ {[%emt 0:00:03]} Kh7 {[%emt 0:00:11]} 70. Ng5+ {[%emt 0:00:04]} Kh6 {[%emt 0:00:11]} 71. Kg4 {[%emt 0:00:20]} Be1 {[%emt 0:00:03]} 72. h4 {[%emt 0:00:22]} Rg3+ {[%emt 0:00:11]} 73. Kf4 {[%emt 0:00:02]} Rb3 {[%emt 0:00:25]} 74. Rh8+ {[%emt 0:00:16]} Kg7 {[%emt 0:00:01]} 75. Rh7+ {[%emt 0:00:01]} Kg8 {[%emt 0:00:01]} 76. Rh6 {[%emt 0:00:04]} Bd2+ {[%emt 0:00:35]} 77. Kg4 {[%emt 0:00:06]} Rb4+ {[%emt 0:00:03]} 78. Kg3 {[%emt 0:00:06]} Rb6 {[%emt 0:00:20]} 79. h5 {[%emt 0:00:21]} Rb3+ {[%emt 0:00:01]} 80. Kg2 {[%emt 0:00:11]} gxh5 {[%emt 0:00:10]} 81. Rxh5 {[%emt 0:00:05]} Rb5 {[%emt 0:00:02]} 82. Ne4 {[%emt 0:00:04]} Rxh5 {[%emt 0:00:04]} 83. Nf6+ {[%emt 0:00:01]} Kf7 {[%emt 0:00:01]} 84. Nxh5 {[%emt 0:00:01]} 1/2-1/2

[Event "Hungarian Rapid-ch 2022"]
[Site "Ajka"]
[Date "2022.07.15"]
[Round "3.3"]
[White "Balog, Imre"]
[Black "Krstulovic, Alex"]
[Result "1-0"]
[ECO "D03"]
[WhiteElo "2594"]
[BlackElo "2413"]
[Annotator "ChessBase"]
[PlyCount "157"]
[EventDate "2022.07.15"]
[EventType "swiss"]
[EventCountry "HUN"]
[SourceTitle "playchess.com"]
[Source "ChessBase"]
[SourceQuality "1"]
[TimeControl "900+10"]

1. d4 {[%emt 0:00:17]} Nf6 {[%emt 0:00:11]} 2. Bg5 {[%emt 0:00:01]} d5 {[%emt 0:00:05]} 3. Nf3 {[%emt 0:00:02]} c5 {[%emt 0:00:11]} 4. e3 {[%emt 0:00:07]} Nc6 {[%emt 0:00:08]} 5. c3 {[%emt 0:00:06]} cxd4 {[%emt 0:00:24]} 6. exd4 {[%emt 0:00:02]} Bf5 {[%emt 0:01:48]} 7. Qb3 {[%emt 0:00:16]} Qb6 {[%emt 0:00:01]} 8. Qxb6 {[%emt 0:00:48]} axb6 {[%emt 0:00:02]} 9. Na3 {[%emt 0:00:07]} Ne4 {[%emt 0:01:12]} 10. Nb5 {[%emt 0:00:41]} Rc8 {[%emt 0:00:01]} 11. Bf4 {[%emt 0:00:03]} e6 {[%emt 0:00:55]} 12. Bc7 {[%emt 0:00:21]} g5 {[%emt 0:01:49]} 13. Nd2 {[%emt 0:00:12]} Nxd4 {[%emt 0:02:57]} 14. Nxe4 {[%emt 0:00:25]} Nc2+ {[%emt 0:00:02]} 15. Kd2 {[%emt 0:00:02]} Nxa1 {[%emt 0:00:23]} 16. Ng3 {[%emt 0:03:44]} Bg6 {[%emt 0:02:17]} 17. Bd3 {[%emt 0:00:13]} Bc5 {[%emt 0:00:17]} 18. f3 {[%emt 0:00:14]} f6 {[%emt 0:02:22]} 19. Rxa1 {[%emt 0:00:11]} Kd7 {[%emt 0:00:42]} 20. b4 {[%emt 0:00:05]} Be7 {[%emt 0:01:03]} 21. Bxb6 {[%emt 0:00:23]} Bxd3 {[%emt 0:00:03]} 22. Kxd3 {[%emt 0:00:01]} Kc6 {[%emt 0:00:00]} 23. Na7+ {[%emt 0:00:03]} Kxb6 {[%emt 0:00:01]} 24. Nxc8+ {[%emt 0:00:01]} Rxc8 {[%emt 0:00:01]} 25. Re1 {[%emt 0:00:07]} Rc6 {[%emt 0:00:23]} 26. Ne2 {[%emt 0:02:24]} e5 {[%emt 0:00:02]} 27. Ng3 {[%emt 0:00:01]} Kb5 {[%emt 0:00:36]} 28. Rb1 {[%emt 0:00:02]} Ra6 {[%emt 0:00:19]} 29. Nf5 {[%emt 0:00:24]} Bf8 {[%emt 0:00:34]} 30. Ne3 {[%emt 0:00:34]} Rxa2 {[%emt 0:00:38]} 31. Nxd5 {[%emt 0:00:02]} Rxg2 {[%emt 0:00:01]} 32. Nxf6 {[%emt 0:00:04]} Rxh2 {[%emt 0:00:13]} 33. c4+ {[%emt 0:02:01]} Kc6 {[%emt 0:00:34]} 34. Ng4 {[%emt 0:00:09]} Rh3 {[%emt 0:00:10]} 35. Nxe5+ {[%emt 0:00:09]} Kc7 {[%emt 0:00:11]} 36. Ke4 {[%emt 0:00:12]} Bg7 {[%emt 0:00:04]} 37. f4 {[%emt 0:02:52]} gxf4 {[%emt 0:00:14]} 38. Nf3 {[%emt 0:00:02]} Rh6 {[%emt 0:00:12]} 39. Rg1 {[%emt 0:01:17]} Rg6 {[%emt 0:00:01]} 40. Rh1 {[%emt 0:00:00]} h6 {[%emt 0:00:29]} 41. Kxf4 {[%emt 0:00:27]} Rc6 {[%emt 0:00:02]} 42. Rc1 {[%emt 0:00:02]} Bf8 {[%emt 0:00:18]} 43. b5 {[%emt 0:00:14]} Rf6+ {[%emt 0:00:03]} 44. Ke4 {[%emt 0:00:02]} b6 45. Nd4 {[%emt 0:00:45]} Bc5 {[%emt 0:00:18]} 46. Nf5 {[%emt 0:00:08]} Re6+ {[%emt 0:00:16]} 47. Kd5 {[%emt 0:00:02]} Re2 {[%emt 0:00:08]} 48. Rh1 {[%emt 0:00:09]} Rd2+ {[%emt 0:00:02]} 49. Ke4 {[%emt 0:00:02]} Rc2 {[%emt 0:00:09]} 50. Kd3 {[%emt 0:00:07]} Rf2 {[%emt 0:00:02]} 51. Rh5 {[%emt 0:00:02]} Rf3+ {[%emt 0:00:06]} 52. Ke4 {[%emt 0:00:01]} Rc3 {[%emt 0:00:01]} 53. Kd5 {[%emt 0:00:19]} Rd3+ {[%emt 0:00:01]} 54. Ke5 {[%emt 0:00:02]} Rc3 {[%emt 0:00:51]} 55. Rh4 {[%emt 0:00:02]} Bf8 {[%emt 0:00:03]} 56. Kd5 {[%emt 0:00:51]} Kd7 {[%emt 0:00:15]} 57. Rg4 {[%emt 0:00:11]} Rd3+ {[%emt 0:00:03]} 58. Ke4 {[%emt 0:00:01]} Rd1 {[%emt 0:00:07]} 59. Rg8 {[%emt 0:00:07]} Bc5 {[%emt 0:00:01]} 60. Rg7+ {[%emt 0:00:02]} Ke6 {[%emt 0:00:03]} 61. Rg6+ {[%emt 0:00:02]} Kd7 {[%emt 0:00:08]} 62. Rxh6 {[%emt 0:00:04]} Re1+ {[%emt 0:00:02]} 63. Kd3 {[%emt 0:00:01]} Rd1+ {[%emt 0:00:02]} 64. Kc2 {[%emt 0:00:14]} Rf1 {[%emt 0:00:12]} 65. Ng7 {[%emt 0:01:49]} Bf8 {[%emt 0:00:50]} 66. Rxb6 {[%emt 0:00:18]} Rf2+ {[%emt 0:00:16]} 67. Kd3 {[%emt 0:00:04]} Rf3+ {[%emt 0:00:12]} 68. Ke4 {[%emt 0:01:00]} Rc3 {[%emt 0:00:01]} 69. Ne6 {[%emt 0:00:10]} Bd6 {[%emt 0:00:01]} 70. Kd5 {[%emt 0:00:12]} Rd3+ {[%emt 0:00:05]} 71. Nd4 {[%emt 0:00:02]} Bg3 {[%emt 0:00:08]} 72. Rb7+ {[%emt 0:00:04]} Kc8 {[%emt 0:00:01]} 73. Rf7 {[%emt 0:00:02]} Bh2 {[%emt 0:00:11]} 74. b6 {[%emt 0:00:15]} Rd1 {[%emt 0:00:25]} 75. Kc6 {[%emt 0:00:14]} Kd8 {[%emt 0:00:01]} 76. Nb5 {[%emt 0:00:15]} Rc1 {[%emt 0:00:38]} 77. c5 {[%emt 0:00:06]} Bg1 {[%emt 0:00:02]} 78. Rd7+ {[%emt 0:00:16]} Ke8 {[%emt 0:00:04]} 79. Rd5 {[%emt 0:00:01]} 1-0

[Event "Hungarian Rapid-ch 2022"]
[Site "Ajka"]
[Date "2022.07.15"]
[Round "3.4"]
[White "Lazarne Vajda, Szidonia"]
[Black "Hera, Imre Jr."]
[Result "0-1"]
[ECO "B22"]
[WhiteElo "2313"]
[BlackElo "2568"]
[Annotator "ChessBase"]
[PlyCount "94"]
[EventDate "2022.07.15"]
[EventType "swiss"]
[EventCountry "HUN"]
[SourceTitle "playchess.com"]
[Source "ChessBase"]
[SourceQuality "1"]
[TimeControl "900+10"]

1. e4 {[%emt 0:00:17]} c5 {[%emt 0:00:17]} 2. c3 {[%emt 0:00:09]} Nf6 {[%emt 0:00:02]} 3. e5 {[%emt 0:00:04]} Nd5 {[%emt 0:00:02]} 4. d4 {[%emt 0:00:03]} cxd4 {[%emt 0:00:03]} 5. cxd4 {[%emt 0:00:04]} g6 {[%emt 0:00:35]} 6. Nf3 {[%emt 0:00:12]} Bg7 {[%emt 0:00:02]} 7. Bc4 {[%emt 0:00:34]} Nb6 {[%emt 0:00:01]} 8. Bb3 {[%emt 0:00:14]} O-O {[%emt 0:00:03]} 9. O-O {[%emt 0:00:31]} d6 {[%emt 0:00:01]} 10. h3 {[%emt 0:01:17]} dxe5 {[%emt 0:00:09]} 11. dxe5 {[%emt 0:01:06]} Qxd1 {[%emt 0:00:17]} 12. Rxd1 {[%emt 0:00:07]} Nc6 {[%emt 0:00:02]} 13. Re1 {[%emt 0:00:50]} Nb4 {[%emt 0:00:31]} 14. Nc3 {[%emt 0:00:54]} Nd3 {[%emt 0:00:10]} 15. Re2 {[%emt 0:00:26]} Nc5 {[%emt 0:03:38]} 16. Bc2 {[%emt 0:01:41]} Be6 {[%emt 0:00:09]} 17. Be3 {[%emt 0:00:16]} Rac8 {[%emt 0:00:09]} 18. Bxc5 {[%emt 0:05:01]} Rxc5 {[%emt 0:00:02]} 19. Bb3 {[%emt 0:00:27]} Bc4 {[%emt 0:01:00]} 20. Re4 {[%emt 0:01:09]} Rfc8 {[%emt 0:00:45]} 21. Rd1 {[%emt 0:00:16]} e6 {[%emt 0:01:31]} 22. Rdd4 {[%emt 0:01:29]} a6 {[%emt 0:00:52]} 23. Rd6 {[%emt 0:00:06]} R5c6 {[%emt 0:01:11]} 24. Rxc6 {[%emt 0:00:18]} Rxc6 {[%emt 0:00:02]} 25. Nd4 {[%emt 0:00:05]} Rc7 {[%emt 0:00:16]} 26. f4 {[%emt 0:00:11]} Bxb3 {[%emt 0:00:30]} 27. axb3 {[%emt 0:00:01]} Nd7 {[%emt 0:00:02]} 28. Re2 {[%emt 0:01:09]} Nc5 {[%emt 0:00:46]} 29. Ne4 {[%emt 0:00:02]} Nxe4 {[%emt 0:02:52]} 30. Rxe4 {[%emt 0:00:01]} Bf8 {[%emt 0:00:28]} 31. Kh2 {[%emt 0:00:08]} Rd7 {[%emt 0:00:17]} 32. Nf3 {[%emt 0:00:37]} Rd3 {[%emt 0:00:05]} 33. Rc4 {[%emt 0:00:23]} Rxb3 {[%emt 0:00:16]} 34. Nd2 {[%emt 0:00:03]} Rb4 {[%emt 0:00:17]} 35. Rc7 {[%emt 0:00:08]} b5 {[%emt 0:00:17]} 36. b3 {[%emt 0:00:04]} Rxf4 {[%emt 0:00:03]} 37. Ra7 {[%emt 0:00:07]} Rd4 {[%emt 0:00:26]} 38. Nf3 {[%emt 0:00:02]} Rd3 {[%emt 0:00:08]} 39. Ng5 {[%emt 0:00:15]} Rxb3 {[%emt 0:00:54]} 40. Ne4 {[%emt 0:00:04]} Kg7 {[%emt 0:00:46]} 41. Nf6 {[%emt 0:00:11]} Bc5 {[%emt 0:00:16]} 42. Ne8+ {[%emt 0:00:01]} Kf8 {[%emt 0:00:15]} 43. Ra8 {[%emt 0:00:01]} Bd4 {[%emt 0:00:06]} 44. Nf6+ {[%emt 0:00:07]} Kg7 {[%emt 0:00:01]} 45. Rg8+ {[%emt 0:00:55]} Kh6 {[%emt 0:00:01]} 46. Ng4+ {[%emt 0:00:03]} Kg5 {[%emt 0:00:01]} 47. Rd8 {[%emt 0:00:05]} Rd3 {[%emt 0:00:12]} 0-1

[Event "Hungarian Rapid-ch 2022"]
[Site "Ajka"]
[Date "2022.07.15"]
[Round "3.5"]
[White "Horvath, Csaba"]
[Black "Nemeth, Zoltan"]
[Result "1-0"]
[ECO "A41"]
[WhiteElo "2506"]
[BlackElo "2242"]
[Annotator "ChessBase"]
[PlyCount "87"]
[EventDate "2022.07.15"]
[EventType "swiss"]
[EventCountry "HUN"]
[SourceTitle "playchess.com"]
[Source "ChessBase"]
[SourceQuality "1"]
[TimeControl "900+10"]

1. Nf3 {[%emt 0:00:13]} d6 {[%emt 0:00:22]} 2. d4 {[%emt 0:00:02]} Bg4 {[%emt 0:00:02]} 3. c4 {[%emt 0:00:13]} e5 {[%emt 0:00:21]} 4. dxe5 {[%emt 0:00:34]} Bxf3 {[%emt 0:00:01]} 5. exf3 {[%emt 0:00:12]} dxe5 {[%emt 0:00:01]} 6. Qxd8+ {[%emt 0:01:07]} Kxd8 {[%emt 0:00:01]} 7. Nc3 {[%emt 0:00:16]} c6 {[%emt 0:00:12]} 8. f4 {[%emt 0:00:19]} Bd6 {[%emt 0:00:16]} 9. Ne4 {[%emt 0:01:39]} Bb4+ {[%emt 0:00:07]} 10. Kd1 {[%emt 0:00:02]} Nd7 {[%emt 0:00:20]} 11. fxe5 {[%emt 0:00:48]} Nxe5 {[%emt 0:00:05]} 12. Bf4 {[%emt 0:00:10]} Ng6 {[%emt 0:00:25]} 13. Bg3 {[%emt 0:02:05]} Ke7 {[%emt 0:02:37]} 14. a3 {[%emt 0:00:35]} f5 {[%emt 0:00:01]} 15. axb4 {[%emt 0:00:16]} fxe4 {[%emt 0:00:01]} 16. Kc2 {[%emt 0:00:38]} Nf6 {[%emt 0:00:02]} 17. Be2 {[%emt 0:00:02]} Rhd8 {[%emt 0:00:14]} 18. h4 {[%emt 0:00:15]} Ke6 {[%emt 0:00:14]} 19. h5 {[%emt 0:00:23]} Ne5 {[%emt 0:00:01]} 20. Ra3 {[%emt 0:03:34]} Rd4 {[%emt 0:00:49]} 21. Kc3 {[%emt 0:00:04]} Rd7 {[%emt 0:00:02]} 22. Ra5 {[%emt 0:00:47]} Neg4 {[%emt 0:05:17]} 23. Rg5 {[%emt 0:00:39]} Nh6 {[%emt 0:00:09]} 24. Re5+ {[%emt 0:00:22]} Kf7 {[%emt 0:00:01]} 25. Bh4 {[%emt 0:01:09]} Re8 {[%emt 0:00:04]} 26. Rxe8 {[%emt 0:00:11]} Nxe8 {[%emt 0:00:48]} 27. g4 {[%emt 0:00:02]} b6 {[%emt 0:03:21]} 28. Rh3 {[%emt 0:00:18]} c5 {[%emt 0:00:03]} 29. bxc5 {[%emt 0:00:20]} bxc5 {[%emt 0:00:00]} 30. Re3 {[%emt 0:00:02]} Rd4 {[%emt 0:00:55]} 31. b4 {[%emt 0:00:04]} Nc7 {[%emt 0:00:01]} 32. bxc5 {[%emt 0:00:05]} Ne6 {[%emt 0:00:00]} 33. Bg3 {[%emt 0:00:35]} Rd8 {[%emt 0:00:50]} 34. Rxe4 {[%emt 0:00:07]} Nxc5 {[%emt 0:00:02]} 35. Re5 {[%emt 0:00:14]} Na4+ {[%emt 0:00:53]} 36. Kb4 {[%emt 0:00:02]} Nb6 {[%emt 0:00:01]} 37. c5 {[%emt 0:00:20]} Nd5+ {[%emt 0:00:41]} 38. Kc4 {[%emt 0:00:02]} Ne7 {[%emt 0:00:13]} 39. Re4 {[%emt 0:01:23]} Nhg8 {[%emt 0:01:19]} 40. Bd6 {[%emt 0:00:10]} Rc8 {[%emt 0:00:05]} 41. Rf4+ {[%emt 0:00:09]} Ke6 {[%emt 0:00:20]} 42. Bd3 {[%emt 0:00:06]} Nf6 {[%emt 0:00:00]} 43. g5 {[%emt 0:00:06]} Nxh5 {[%emt 0:00:04]} 44. Re4+ {[%emt 0:00:02]} 1-0

[Event "Hungarian Rapid-ch 2022"]
[Site "Ajka"]
[Date "2022.07.15"]
[Round "3.6"]
[White "Martini, Balazs"]
[Black "Prohaszka, Peter"]
[Result "0-1"]
[ECO "D04"]
[WhiteElo "2348"]
[BlackElo "2570"]
[Annotator "ChessBase"]
[PlyCount "36"]
[EventDate "2022.07.15"]
[EventType "swiss"]
[EventCountry "HUN"]
[SourceTitle "playchess.com"]
[Source "ChessBase"]
[SourceQuality "1"]
[TimeControl "900+10"]

1. d4 {[%emt 0:00:20]} d5 {[%emt 0:00:16]} 2. Nf3 {[%emt 0:00:00]} Nf6 {[%emt 0:00:02]} 3. e3 {[%emt 0:00:05]} c5 {[%emt 0:00:14]} 4. dxc5 {[%emt 0:00:07]} e6 {[%emt 0:00:20]} 5. c4 {[%emt 0:00:11]} Bxc5 {[%emt 0:00:12]} 6. Qc2 {[%emt 0:00:42]} Bd6 {[%emt 0:01:14]} 7. Nbd2 {[%emt 0:00:25]} Nc6 {[%emt 0:00:06]} 8. a3 {[%emt 0:00:05]} Bd7 {[%emt 0:02:10]} 9. Bd3 {[%emt 0:03:15]} Rc8 {[%emt 0:00:07]} 10. O-O {[%emt 0:00:32]} O-O {[%emt 0:00:38]} 11. b3 {[%emt 0:04:34]} e5 {[%emt 0:03:49]} 12. e4 {[%emt 0:02:49]} dxc4 {[%emt 0:03:53]} 13. Nxc4 {[%emt 0:02:12]} Bb8 {[%emt 0:00:01]} 14. Qe2 {[%emt 0:01:33]} Bg4 {[%emt 0:00:43]} 15. Be3 {[%emt 0:00:21]} Bxf3 {[%emt 0:00:35]} 16. gxf3 {[%emt 0:00:06]} Nh5 {[%emt 0:00:18]} 17. Rfd1 {[%emt 0:00:27]} Nd4 {[%emt 0:00:24]} 18. Bxd4 {[%emt 0:00:02]} exd4 {[%emt 0:00:23]} 0-1

[Event "Hungarian Rapid-ch 2022"]
[Site "Ajka"]
[Date "2022.07.15"]
[Round "3.7"]
[White "Vertetics, Attila"]
[Black "Margl, Roland"]
[Result "1/2-1/2"]
[ECO "D02"]
[WhiteElo "2465"]
[BlackElo "2312"]
[Annotator "ChessBase"]
[PlyCount "150"]
[EventDate "2022.07.15"]
[EventType "swiss"]
[EventCountry "HUN"]
[SourceTitle "playchess.com"]
[Source "ChessBase"]
[SourceQuality "1"]
[TimeControl "900+10"]

1. d4 {[%emt 0:00:11]} d5 {[%emt 0:00:11]} 2. Nf3 {[%emt 0:00:03]} Nf6 {[%emt 0:00:01]} 3. c4 {[%emt 0:00:08]} e6 {[%emt 0:00:01]} 4. e3 {[%emt 0:00:09]} b6 {[%emt 0:00:02]} 5. Nc3 {[%emt 0:00:02]} Bb7 {[%emt 0:00:02]} 6. Bd3 {[%emt 0:00:02]} Nbd7 {[%emt 0:00:04]} 7. O-O {[%emt 0:00:06]} Bd6 {[%emt 0:00:52]} 8. Qe2 {[%emt 0:00:32]} O-O {[%emt 0:00:07]} 9. e4 {[%emt 0:00:46]} dxe4 {[%emt 0:00:11]} 10. Nxe4 {[%emt 0:00:01]} Nxe4 {[%emt 0:00:18]} 11. Bxe4 {[%emt 0:00:03]} Bxe4 {[%emt 0:00:02]} 12. Qxe4 {[%emt 0:00:01]} c5 {[%emt 0:00:05]} 13. Rd1 {[%emt 0:01:06]} Nf6 {[%emt 0:01:55]} 14. Qh4 {[%emt 0:00:48]} cxd4 {[%emt 0:01:02]} 15. Nxd4 {[%emt 0:00:36]} Be7 {[%emt 0:00:35]} 16. Qf4 {[%emt 0:01:09]} Qc8 {[%emt 0:01:18]} 17. b3 {[%emt 0:00:08]} Rd8 {[%emt 0:00:28]} 18. Be3 {[%emt 0:02:17]} Qb7 {[%emt 0:01:23]} 19. Nb5 {[%emt 0:03:23]} Rd7 {[%emt 0:02:56]} 20. Rxd7 {[%emt 0:01:53]} Qxd7 {[%emt 0:00:05]} 21. Qd4 {[%emt 0:00:15]} Qb7 {[%emt 0:02:18]} 22. Rd1 {[%emt 0:00:20]} h6 {[%emt 0:00:02]} 23. Qe5 {[%emt 0:01:50]} Ng4 {[%emt 0:02:34]} 24. Qf4 {[%emt 0:01:21]} Nxe3 {[%emt 0:00:06]} 25. Qxe3 {[%emt 0:00:01]} Bc5 {[%emt 0:00:23]} 26. Qe5 {[%emt 0:00:21]} Rc8 {[%emt 0:01:30]} 27. Nc3 {[%emt 0:01:12]} Be7 {[%emt 0:00:07]} 28. Qe4 {[%emt 0:00:05]} Qxe4 {[%emt 0:00:08]} 29. Nxe4 {[%emt 0:00:01]} Rc7 {[%emt 0:00:01]} 30. Kf1 {[%emt 0:00:12]} f5 {[%emt 0:00:02]} 31. Nc3 {[%emt 0:00:02]} a6 {[%emt 0:00:01]} 32. Ne2 {[%emt 0:00:05]} Kf7 {[%emt 0:00:11]} 33. Nd4 {[%emt 0:00:02]} Rd7 {[%emt 0:00:18]} 34. Ke2 {[%emt 0:00:02]} Bc5 {[%emt 0:00:19]} 35. Nc2 {[%emt 0:00:48]} Rxd1 {[%emt 0:00:02]} 36. Kxd1 {[%emt 0:00:01]} Bxf2 {[%emt 0:00:01]} 37. Ke2 {[%emt 0:00:01]} Bg1 {[%emt 0:00:07]} 38. h3 {[%emt 0:00:02]} a5 {[%emt 0:00:15]} 39. a3 {[%emt 0:00:38]} Bc5 {[%emt 0:00:15]} 40. b4 {[%emt 0:00:12]} axb4 {[%emt 0:00:01]} 41. axb4 {[%emt 0:00:01]} Bd6 {[%emt 0:00:09]} 42. Kd3 {[%emt 0:00:03]} Be5 {[%emt 0:01:15]} 43. c5 {[%emt 0:00:05]} bxc5 {[%emt 0:00:01]} 44. bxc5 {[%emt 0:00:01]} Ke7 {[%emt 0:00:05]} 45. Kc4 {[%emt 0:00:04]} g5 {[%emt 0:00:12]} 46. g4 {[%emt 0:00:20]} Kd7 {[%emt 0:00:10]} 47. Kb5 {[%emt 0:00:20]} f4 {[%emt 0:00:22]} 48. Kc4 {[%emt 0:00:19]} Bc7 {[%emt 0:00:09]} 49. Ne1 {[%emt 0:00:30]} Kc6 {[%emt 0:00:11]} 50. Nf3 {[%emt 0:00:23]} e5 {[%emt 0:00:07]} 51. Nd2 {[%emt 0:00:02]} Bd8 {[%emt 0:00:09]} 52. Kd3 {[%emt 0:00:15]} Kd5 {[%emt 0:00:16]} 53. c6 {[%emt 0:00:18]} Kxc6 {[%emt 0:00:22]} 54. Ke4 {[%emt 0:00:03]} Bc7 {[%emt 0:00:08]} 55. Nf3 {[%emt 0:00:03]} Kc5 {[%emt 0:00:01]} 56. h4 {[%emt 0:00:02]} gxh4 {[%emt 0:00:17]} 57. Nxh4 {[%emt 0:00:00]} Bd8 {[%emt 0:00:08]} 58. Nf5 {[%emt 0:00:27]} Bg5 {[%emt 0:00:02]} 59. Kxe5 {[%emt 0:00:20]} f3 {[%emt 0:00:08]} 60. Ke4 {[%emt 0:00:20]} f2 {[%emt 0:00:01]} 61. Ng3 {[%emt 0:00:03]} Bh4 {[%emt 0:00:05]} 62. Nf1 {[%emt 0:00:00]} Kd6 {[%emt 0:00:12]} 63. Ne3 {[%emt 0:00:15]} Kc5 {[%emt 0:00:37]} 64. Kf3 {[%emt 0:00:14]} Kd4 {[%emt 0:00:05]} 65. Ke2 {[%emt 0:00:03]} Ke4 {[%emt 0:00:09]} 66. Nd1 {[%emt 0:00:02]} Kf4 {[%emt 0:00:05]} 67. Nxf2 {[%emt 0:00:02]} Bxf2 {[%emt 0:00:01]} 68. Kxf2 {[%emt 0:00:01]} Kxg4 {[%emt 0:00:01]} 69. Kg2 {[%emt 0:00:01]} h5 {[%emt 0:00:01]} 70. Kh2 {[%emt 0:00:01]} h4 {[%emt 0:00:01]} 71. Kg2 {[%emt 0:00:01]} h3+ {[%emt 0:00:00]} 72. Kh2 {[%emt 0:00:01]} Kh4 {[%emt 0:00:01]} 73. Kh1 {[%emt 0:00:00]} Kg3 {[%emt 0:00:01]} 74. Kg1 {[%emt 0:00:01]} h2+ {[%emt 0:00:00]} 75. Kh1 {[%emt 0:00:01]} Kh3 {[%emt 0:00:01]} 1/2-1/2